Cogmind - Beta 11.1 @@@ ROGUE MODE // 2022.06.27 @ 22:55:49 Player: Dickface Result: Destroyed by Y-45 Defender with Heavy Assault Rifle Performance ------------- Evolutions (1) 500 Regions Visited (2) 400 Robots Destroyed (14) 70 Value Destroyed (318) 318 Prototype IDs (0) 0 Alien Tech Used (0) 0 Bonus (0) 0 TOTAL SCORE: 1288 Bonus ------- None Cogmind --------- Core Integrity 0/400 Matter 213/300 Energy 300/300 System Corruption 0% Temperature Cool (27) Movement Core (2400) Ox47 Location -9/Materials Parts ------- > --- POWER (2) -------- (None) > --- PROPULSION (2) --- (None) > --- UTILITY (3) ------ Cargo Storage Unit Large Battery > --- WEAPON (2) ------- (None) > --- INVENTORY (30) --- Improved Heat Sink Visual Processing Unit Melee Analysis Suite Peak State ------------ > --- POWER ------------ Light Ion Engine Light Ion Engine > --- PROPULSION ------- (None) > --- UTILITY ---------- Improved Heat Sink Large Battery Shield Generator > --- WEAPON ----------- Light Cannon Light Cannon > --- INVENTORY -------- Visual Processing Unit Melee Analysis Suite [Rating: 10] Favorites ----------- Power Light Ion Engine Engine Light Ion Engine Propulsion Flight Unit Wheel Compact Wheel Flight Unit Flight Unit Utility Large Battery Device Improved Heat Sink Storage Large Battery Protection Weapon Shielding Weapon Light Cannon Energy Gun Medium Laser Ballistic Gun Assault Rifle Ballistic Cannon Light Cannon Launcher Mini Grenade Launcher Build | -11 -10 -9 ------- Run | Scr Mat Mat Slots Evolved 2 | . . 2 Power 1 | . . 1 Propulsion . | . . . Utility 1 | . . 1 Weapon . | . . . Parts Attached 25 | 6 6 13 Power 4 | 1 1 2 Engine 4 | 1 1 2 Core . | . . . Reactor . | . . . Propulsion 6 | 2 . 4 Treads . | . . . Leg . | . . . Wheel 2 | 2 . . Hover . | . . . Flight 4 | . . 4 Utility 8 | 1 3 4 Device 4 | . 2 2 Storage 3 | 1 . 2 Processor . | . . . Hackware . | . . . Protection 1 | . 1 . Artifact . | . . . Weapon 7 | 2 2 3 Energy Gun 2 | 1 1 . Energy Cannon . | . . . Ballistic Gun 2 | 1 . 1 Ballistic Cannon 2 | . 1 1 Launcher 1 | . . 1 Special Weapon . | . . . Impact Weapon . | . . . Slashing Weapon . | . . . Piercing Weapon . | . . . Special Melee Weapon . | . . . Unidentified Prototypes . | . . . Parts Lost 17 | . 4 13 Power 4 | . 1 3 Propulsion 6 | . 1 5 Utility 1 | . 1 . Weapon 6 | . 1 5 Highest Loss Streak 6 | . 3 6 To Critical Strikes . | . . . Average Slot Usage (%) 74 | . 85 71 Engine 12 | . 14 12 Wheel 4 | . 18 . Flight 11 | . . 14 Device 5 | . 15 3 Storage 16 | . 7 19 Energy Gun 3 | . 14 . Ballistic Gun 5 | . 12 3 Ballistic Cannon 10 | . 1 13 Launcher 2 | . . 3 Naked Turns . | . . . Heaviest Build 155 | 12 13 155 Greatest Support 32 | 32 32 16 Greatest Overweight (x) 51 | . . 51 Average Overweight (x) 2 | . . 8 Largest Inventory Capacity 30 | 8 8 30 Average Capacity 18 | 7 6 26 Most Carried 5 | 5 5 5 Average Carried 2 | 2 3 3 Final Capacity 30 | 8 5 30 Final Carried 5 | 2 5 3 Class Distribution -------------------- 50% | Hauler-Mutant 49% | Mutant Dominant Class ---------------- Mutant | -10/Materials Hauler-Mutant | -9/Materials Resources | -11 -10 -9 ----------- Run | Scr Mat Mat Matter Collected 448 | 230 129 89 Remotely 97 | . 34 63 Salvage Created 281 | . 189 92 Parts 17 | . 9 8 Haulers Intercepted . | . . . Recyclers Shooed . | . . . Parts Field Recycled . | . . . Retrieved Matter . | . . . Parts Self-Destructed . | . . . Prevented . | . . . Kills | -11 -10 -9 ------- Run | Scr Mat Mat Combat Hostiles Destroyed 12 | . 6 6 Guns 6 | . 6 . Cannons 3 | . . 3 AOE 3 | . . 3 Classes Destroyed 4 | . 3 1 Watcher 2 | . 1 1 Swarmer 7 | . 3 4 Grunt 4 | . 3 1 Duelist 1 | . . 1 Best Kill Streak 5 | . 5 3 Combat Bots Only 5 | . 5 3 Max Kills in Single Turn 3 | . 1 3 Gunslinging . | . . . Exploded 3 | . . 3 Melee . | . . . Uniques/NPCs Destroyed . | . . . Combat | -11 -10 -9 -------- Run | Scr Mat Mat Damage Taken 1837 | . 488 1349 Core 554 | . 139 415 Absorbed by Shields . | . . . Redirected to Shielding 12 | . 12 . Core Remaining (%) 72 | 100 44 . Volleys Fired 44 | . 21 23 Largest 2 | . 2 2 Hottest 85 | . 70 85 Shots Fired 75 | . 42 33 Gun 51 | . 42 9 Cannon 22 | . . 22 Launcher 2 | . . 2 Special . | . . . Kinetic 46 | . 21 25 Thermal 27 | . 21 6 Explosive 2 | . . 2 Electromagnetic . | . . . Robot Hit Streak 12 | . 12 7 Robot Miss Streak 4 | . 4 3 Penetration Max . | . . . Secondary Targets 1 | . 1 . Max Gunslinging Chain 1 | . 1 . Shots Hit Robots 43 | . 25 18 Core Hits 20 | . 10 10 Critical Kills . | . . . Critical Parts Destroyed . | . . . Critical Strikes 2 | . . 2 Blast 2 | . . 2 Melee Attacks . | . . . Impact . | . . . Slashing . | . . . Piercing . | . . . Sneak Attacks . | . . . Combat Hostiles . | . . . Follow-up Attacks . | . . . Damage Inflicted 901 | . 367 534 Guns 410 | . 352 58 Cannons 218 | . . 218 Explosions 258 | . . 258 Melee . | . . . Ramming 15 | . 15 . Kinetic 392 | . 165 227 Thermal 236 | . 187 49 Explosive 258 | . . 258 Electromagnetic . | . . . Impact . | . . . Slashing . | . . . Piercing . | . . . Highest Corruption . | . . . Average Corruption . | . . . Corruption Purged . | . . . Corruption Blocked . | . . . Overload Shots . | . . . Overflow Damage 6 | . . 6 Projectiles . | . . . Explosions 6 | . . 6 Melee . | . . . Knockbacks 7 | . . 7 Impact . | . . . Kinetic 6 | . . 6 Secondary 1 | . . 1 Self-Inflicted Damage 100 | . 6 94 Shots 2 | . . 2 Rammed 3 | . 3 . Targets Rammed 3 | . 3 . Kicked . | . . . Crushed . | . . . Highest Temperature 230 | . 230 42 Average Temperature 79 | . 97 12 Received Heat Transfer 411 | . 231 180 Siege Activations . | . . . Robots Corrupted . | . . . Combat Hostiles . | . . . Parts Fried . | . . . Impact Corruptions . | . . . Robots Melted . | . . . Combat Hostiles . | . . . Parts Melted 1 | . 1 . Heat Transferred 703 | . 555 148 Parts Sabotaged . | . . . Parts Stolen . | . . . Parts Stripped . | . . . Power Chain Reactions . | . . . Missiles Intercepted . | . . . Alert | -11 -10 -9 ------- Run | Scr Mat Mat Peak Influence 164 | . 164 103 Initial 68 | . . 68 Average 42 | . 100 48 Maximum Alert Level . | . . . Low Security (%) 100 | 100 100 100 Level 1 . | . . . Level 2 . | . . . Level 3 . | . . . Level 4 . | . . . Level 5 . | . . . High Security . | . . . Max Security . | . . . Squads Dispatched 1 | . 1 . Investigation . | . . . Extermination . | . . . Reinforcement 1 | . 1 . Assault . | . . . Garrison . | . . . Intercept . | . . . Searches Triggered . | . . . Construction Impeded . | . . . Haulers Reinforced . | . . . Active Scanning Responses . | . . . Cargo Convoy Interrupts . | . . . Stealth | -11 -10 -9 --------- Run | Scr Mat Mat Distress Signals 1 | . . 1 Communications Jammed . | . . . Distress Signals . | . . . Times Spotted 18 | . 9 9 Peak Tracking Total 6 | . 6 4 Tactical Retreats 1 | . . 1 Traps | -11 -10 -9 ------- Run | Scr Mat Mat Traps Triggered . | . . . Indirectly . | . . . Trap Hack Attempts . | . . . Triggered . | . . . Disarmed . | . . . Reprogrammed . | . . . Reused . | . . . Traps Extracted . | . . . Installed . | . . . Triggered . | . . . Machines | -11 -10 -9 ---------- Run | Scr Mat Mat Machines Disabled 2 | . 1 1 Max in Single Turn 1 | . 1 1 Machines Sabotaged . | . . . Garrisons Compromised . | . . . Overloaded Fab Kills . | . . . Hacking | -11 -10 -9 --------- Run | Scr Mat Mat Machines Accessed 1 | . 1 . Terminals 1 | . 1 . Fabricators . | . . . Repair Stations . | . . . Recycling Units . | . . . Scanalyzers . | . . . Garrison Access . | . . . Total Hacks 4 | . 4 . Successful 3 | . 3 . Failed 1 | . 1 . Catastrophic . | . . . Database Lockouts . | . . . Manual . | . . . Terminals 4 | . 4 . Fabricators . | . . . Repair Stations . | . . . Recycling Units . | . . . Scanalyzers . | . . . Garrison Access . | . . . Terminal Hacks 3 | . 3 . Record 3 | . 3 . Fabricator Hacks . | . . . Repair Station Hacks . | . . . Recycling Unit Hacks . | . . . Scanalyzer . | . . . Garrison Access Hacks . | . . . Unauthorized Hacks . | . . . Terminals . | . . . Fabricators . | . . . Repair Stations . | . . . Recycling Units . | . . . Scanalyzers . | . . . Garrison Access . | . . . Data Cores Recovered . | . . . Used . | . . . Hacking Detections 1 | . 1 . Full Trace Events . | . . . Feedback Events . | . . . Feedback Blocked . | . . . Robot Schematics Acquired . | . . . Robots Built . | . . . Authchips . | . . . Time . | . . . Total Robot Build Rating . | . . . Part Schematics Acquired . | . . . Parts Built . | . . . Authchips . | . . . Time . | . . . Total Part Build Rating . | . . . Parts Repaired . | . . . Time . | . . . Parts Recycled . | . . . Recycled Matter . | . . . Retrieved Matter . | . . . Retrieved Components . | . . . Parts Scanalyzed . | . . . Part Schematics Acquired . | . . . Parts Damaged . | . . . Bothacking | -11 -10 -9 ------------ Run | Scr Mat Mat Used RIF Installer . | . . . Robots Hacked . | . . . Non-combat . | . . . Combat . | . . . Robot Hacks Applied . | . . . Relay Couplers Released . | . . . Fabnet Peak Effective % . | . . . Robots Rewired . | . . . Allies Hacked . | . . . Hacks Repelled . | . . . Allies | -11 -10 -9 -------- Run | Scr Mat Mat Total Allies . | . . . Largest Group . | . . . Highest-Rated Group . | . . . Highest-Rated Ally . | . . . Total Orders . | . . . Ally Attacks . | . . . Total Damage . | . . . Kills . | . . . Allies Corrupted . | . . . Allies Melted . | . . . Intel | -11 -10 -9 ------- Run | Scr Mat Mat Robot Analysis Total . | . . . Derelict Logs Recovered . | . . . Drone Launches . | . . . Drone Recoveries . | . . . Exploration | -11 -10 -9 ------------- Run | Scr Mat Mat Turns Passed 2354 | 641 347 1366 Spaces Moved 571 | 107 265 199 Core 56 | 10 . 46 Treads . | . . . Legs . | . . . Wheels 457 | 97 265 95 Hover . | . . . Flight 58 | . . 58 Fastest Speed 50 | 50 100 100 Average Speed 293 | 95 100 656 Slowest Speed 2920 | 100 100 2920 Overloaded Moves . | . . . Propulsion Burnouts . | . . . Robots Hopped . | . . . Cave-ins Triggered . | . . . Exploration Rate (%) 21 | 12 38 15 Regions Visited 2 Branch Regions . Pre-discovered Areas . | . . . Known Exits Taken . | . . . Unknown Exits Taken 2 | 1 1 . Scrap Searched . | . . . Spaces Dug . | . . . Terrain Destroyed 24 | . . 24 Melee . | . . . Projectile . | . . . AOE 24 | . . 24 Terrain Rammed . | . . . Walls Destroyed . | . . . Machines Disabled . | . . . Actions | -11 -10 -9 --------- Run | Scr Mat Mat Total 1199 | 645 306 248 Wait 525 | 525 . . Move 569 | 106 264 199 Hop . | . . . Pick Up 26 | 8 9 9 Fast Attach 2 | . 1 1 Attach 23 | 6 5 12 Detach 1 | . . 1 Swap . | . . . Drop 6 | . 3 3 Fire 44 | . 21 23 Melee . | . . . Ram 3 | . 3 . Kick . | . . . Crush . | . . . Escape Stasis . | . . . Rewire . | . . . Trap . | . . . Miscellaneous . | . . . Route ------- -11/Scrapyard -10/Materials (discovered 2 exits: [*Mat] / [*Min]) -9/Materials (discovered 1 exit: [*Mat]) History --------- Turn | Location | Event 9 | -11/Scrapyard | Discovered new exit (range 16) 642 | -11/Scrapyard | Entered Materials 643 | -10/Materials | Build established: Mutant 668 | -10/Materials | Discovered new exit (range 10) 750 | -10/Materials | Core integrity fell below 50% 787 | -10/Materials | Discovered new exit (range 14) 788 | -10/Materials | Lost 3 parts (1p1n1w) 989 | -10/Materials | Entered another Materials area 989 | -9/Materials | Evolved 2 slots: Power x1, Utility x1 1133 | -9/Materials | Lost 3 parts (1p1n1w) 1467 | -9/Materials | Build established: Hauler-Mutant 1885 | -9/Materials | Core integrity fell below 50% 1945 | -9/Materials | Lost 6 parts (2p2n2w) 2307 | -9/Materials | Discovered new exit (range 7) 2338 | -9/Materials | Core integrity fell below 20% 2355 | -9/Materials | Destroyed by Y-45 Defender with Heavy Assault Rifle Last Messages --------------- 02307_ Terminal disabled. 02307_ Mni. Grenade Launcher destroyed. 02307_ Destroyed Mni. Grenade Launcher. 02307_ EXIT=FOUND 02307_ Lgt. Assault Rifle destroyed. 02307_ U-05 Engineer builds a Wall. 02309_ Acquired 11 matter. 02312_ U-05 Engineer builds a Wall. 02313_ K-01 Serf collects debris. 02317_ U-05 Engineer builds a Door. 02319_ Flight Unit destroyed. 02320_ K-01 Serf collects debris. 02322_ U-05 Engineer builds a Wall. 02323_ K-01 Serf collects debris. 02325_ K-01 Serf destroyed. 02326_ U-05 Engineer lays Concrete. 02334_ U-05 Engineer destroyed. 02336_ The unstable cave ceiling collapses. 02346_ Flight Unit destroyed. 02355_ Critical hit (Burn: +37). Map ----- +----------------------------------------------------+ | | | | | | | | | | | | | | | | | | | | | | | | | ????????????????????????????????????????? | | ????????????????????????????????????????? | | ????????????????????????????????????????? | | ????????????????????????????????????????? | | ????????????????????????????????????????? | | ????????????????????????????????????????? | | ????????????????????????????????????????? | | ????????????????????##+#????????????????? | | ??????????????###### ?????????????????? | | ?????????????? ??????????????????? | | ??########????< ???????????????????? | | ??# #???? ????????????????????? | | ??# """ #???###/###????????????????????? | | ??# """ #??## Y@| #????????????????????? | | ?## """ ##?# =%* #????????????????????? | | ?## ##?# =!% #????????????????????? | | ??# ##?# ##????????????????????? | | ??####+###??### #????????????????????? | | ???## ####### ##????????????????????? | | ???## + #?????????????????????? | | ???## ###########?????????????????????? | | ???### ###??????????????????????????????? | | ?????# #????????????????????????????????? | | ?????# #????????????????????????????????? | | ?????# #????????????????????????????????? | | ?????# #????????????????????????????????? | | ####?# #????????????????????????????????? | | # ?# #??####??????????????????????????? | | # "" # #?? #?????????????????????????? | | # Y" # ## #?????????????????????????? | | # "" + #?????????????????????????? | | # # ## #?????????????????????????? | | # # #?? #?????????????????????????? | | # ?# #??# ##??????????????????????????? | | # ?# #??# #???????????????????????????? | | # ??# #??# #???????????????????????????? | | ######+#### #???????????????????????????? | | # # #???????????????????????????? | +----------------------------------------------------+ Best States ------------- Heat Dissipation 42 Energy Generation 15 Energy Capacity 350 Matter Stores 300 Matter Capacity 300 Sight Range 16 Terrain Scan Density 10 Weapon Shielding 33 Evasion (%) 50 Item Schematics ----------------- None Robot Schematics ------------------ None Fabricated ------------ Nothing Alien Tech Used ----------------- None Achievements -------------- Let's See Who's Tougher Tank Challenges ------------ None Game ------ Seed LayeredMicrowarpEdition Manual? 0 Play Time 00:11:47 Cumulative 11.7 hours Start 2022.06.27 @ 22:44:00 End 2022.06.27 @ 22:55:49 Sessions 1 Manual Loads 0 Difficulty Rogue Special Mode None Game No. 32 Rogue 32 Adventurer 0 Explorer 0 Win Type - Total 0 Types 0/0/0/0/0/0/0/0/0 Lore% 3 Gallery% 16 Achievement% 7 Wizard Run 0 Options --------- ASCII 0 Keyboard 0 Movement Arrows Keybinds 0 Fullscreen 2 Font 18/TerminusBold Map View 76x50 Tactical HUD 1 Map Filters NONE Filters NONE Steam 1 RUN: 32bd3f12-fcc9-4f67-a1b3-7550d79c0660